[Event "Masters Tournament (MTO)"]
[Site "Biel, Switzerland"]
[Date "2026.07.14"]
[Round "2.40"]
[White "Von Burg, Carl Alexander"]
[Black "St Pierre, Joseph"]
[Result "1/2-1/2"]
[TimeControl "100+30+30sec/move"]
[WhiteTitle "-"]
[BlackTitle "-"]
[WhiteFideId "1352458"]
[BlackFideId "30953472"]
[WhiteElo "1947"]
[BlackElo "2067"]

1. d4 {[%clk 01:40:58]} Nf6 {[%clk 01:40:53]} {[%emt 00:00:07]} 2. c4 {[%clk
01:41:22]} {[%emt 00:00:04]} e6 {[%clk 01:41:14]} {[%emt 00:00:08]} 3. g3
{[%clk 01:41:46]} {[%emt 00:00:07]} d5 {[%clk 01:41:30]} {[%emt 00:00:14]} 4.
Bg2 {[%clk 01:42:01]} {[%emt 00:00:14]} Bb4+ {[%clk 01:39:53]} {[%emt
00:02:07]} 5. Nd2 {[%clk 01:41:59]} {[%emt 00:00:32]} O-O {[%clk 01:39:53]}
{[%emt 00:00:31]} 6. Ngf3 {[%clk 01:42:10]} {[%emt 00:00:18]} c5 {[%clk
01:36:43]} {[%emt 00:03:41]} 7. cxd5 {[%clk 01:40:16]} {[%emt 00:02:24]} Qxd5
{[%clk 01:33:23]} {[%emt 00:03:51]} 8. O-O {[%clk 01:35:45]} {[%emt 00:05:01]}
cxd4 {[%clk 01:32:36]} {[%emt 00:01:18]} 9. Nb3 {[%clk 01:35:14]} {[%emt
00:01:01]} d3 {[%clk 01:32:54]} {[%emt 00:00:12]} 10. Nfd4 {[%clk 01:31:53]}
{[%emt 00:03:50]} Qd7 {[%clk 01:30:24]} {[%emt 00:03:01]} 11. a3 {[%clk
01:27:17]} {[%emt 00:05:06]} Be7 {[%clk 01:30:37]} {[%emt 00:00:16]} 12. Qxd3
{[%clk 01:25:03]} {[%emt 00:02:44]} e5 {[%clk 01:29:13]} {[%emt 00:01:54]} 13.
Nb5 {[%clk 01:24:14]} {[%emt 00:01:19]} Qxd3 {[%clk 01:29:30]} {[%emt
00:00:14]} 14. exd3 {[%clk 01:24:41]} {[%emt 00:00:03]} Nc6 {[%clk 01:29:40]}
{[%emt 00:00:20]} 15. d4 {[%clk 01:21:08]} {[%emt 00:04:02]} Be6 {[%clk
01:29:14]} {[%emt 00:00:56]} 16. dxe5 {[%clk 01:18:54]} {[%emt 00:02:44]} Bxb3
{[%clk 01:29:30]} {[%emt 00:00:14]} 17. exf6 {[%clk 01:19:09]} {[%emt
00:00:15]} Bxf6 {[%clk 01:29:48]} {[%emt 00:00:12]} 18. Nc3 {[%clk 01:11:07]}
{[%emt 00:08:33]} Rfd8 {[%clk 01:18:43]} {[%emt 00:11:34]} 19. Be3 {[%clk
01:09:58]} {[%emt 00:01:39]} Rac8 {[%clk 01:18:45]} {[%emt 00:00:29]} 20. Rac1
{[%clk 01:08:48]} {[%emt 00:01:37]} b6 {[%clk 01:04:13]} {[%emt 00:15:04]} 21.
Bxc6 {[%clk 00:56:45]} {[%emt 00:12:33]} Rxc6 {[%clk 01:04:31]} {[%emt
00:00:12]} 22. Ne4 {[%clk 00:57:04]} {[%emt 00:00:10]} Rxc1 {[%clk 00:59:49]}
{[%emt 00:05:13]} 23. Nxf6+ {[%clk 00:57:19]} {[%emt 00:00:15]} gxf6 {[%clk
01:00:14]} {[%emt 00:00:05]} 24. Rxc1 {[%clk 00:57:39]} Rd1+ {[%clk 01:00:41]}
{[%emt 00:00:13]} 25. Rxd1 {[%clk 00:57:39]} {[%emt 00:00:30]} Bxd1 {[%clk
01:01:06]} {[%emt 00:00:05]} 26. Kf1 {[%clk 00:56:06]} {[%emt 00:02:02]}
1/2-1/2

[Event "Masters Tournament (MTO)"]
[Site "Biel, Switzerland"]
[Date "2026.07.14"]
[Round "2.41"]
[White "Stefan, Iulia-Cristiana"]
[Black "Alsaleh, Eissa"]
[Result "1-0"]
[TimeControl "100+30+30sec/move"]
[WhiteTitle "-"]
[BlackTitle "-"]
[WhiteFideId "1273876"]
[BlackFideId "10312463"]
[WhiteElo "2053"]
[BlackElo "1908"]

1. d4 {[%clk 01:40:57]} {[%emt 00:00:03]} Nf6 {[%clk 01:40:30]} {[%emt
00:00:29]} 2. Nf3 {[%clk 01:41:22]} {[%emt 00:00:05]} g6 {[%clk 01:40:53]}
{[%emt 00:00:07]} 3. c4 {[%clk 01:41:47]} {[%emt 00:00:05]} Bg7 {[%clk
01:40:58]} {[%emt 00:00:25]} 4. g3 {[%clk 01:42:09]} {[%emt 00:00:08]} O-O
{[%clk 01:40:10]} {[%emt 00:01:19]} 5. Bg2 {[%clk 01:42:33]} {[%emt 00:00:05]}
d6 {[%clk 01:39:43]} {[%emt 00:00:57]} 6. Nc3 {[%clk 01:42:57]} {[%emt
00:00:06]} c5 {[%clk 01:36:12]} {[%emt 00:04:02]} 7. O-O {[%clk 01:43:13]}
{[%emt 00:00:14]} a6 {[%clk 01:35:28]} {[%emt 00:01:14]} 8. dxc5 {[%clk
01:30:16]} {[%emt 00:13:28]} dxc5 {[%clk 01:34:19]} {[%emt 00:01:36]} 9. Qxd8
{[%clk 01:27:01]} {[%emt 00:03:48]} Rxd8 {[%clk 01:33:58]} {[%emt 00:00:49]} 10.
Be3 {[%clk 01:26:08]} {[%emt 00:01:26]} b6 {[%clk 01:22:24]} {[%emt 00:12:04]}
11. Ne5 {[%clk 01:13:42]} {[%emt 00:12:55]} Ra7 {[%clk 01:21:07]} {[%emt
00:01:48]} 12. Na4 {[%clk 01:12:15]} {[%emt 00:01:57]} Bb7 {[%clk 01:05:10]}
{[%emt 00:16:25]} 13. Nxb6 {[%clk 01:05:53]} {[%emt 00:06:54]} Bxg2 {[%clk
01:03:58]} {[%emt 00:01:42]} 14. Kxg2 {[%clk 01:06:18]} {[%emt 00:00:05]} Rb7
{[%clk 01:03:06]} {[%emt 00:01:21]} 15. Na4 {[%clk 01:03:51]} {[%emt 00:02:58]}
Nd5 {[%clk 00:52:56]} {[%emt 00:10:40]} 16. cxd5 {[%clk 01:00:25]} {[%emt
00:03:56]} Bxe5 {[%clk 00:51:51]} {[%emt 00:01:35]} 17. Rad1 {[%clk 00:59:01]}
{[%emt 00:01:53]} c4 {[%clk 00:48:27]} {[%emt 00:03:55]} 18. Bb6 {[%clk
00:39:55]} {[%emt 00:19:36]} Rc8 {[%clk 00:40:21]} {[%emt 00:08:35]} 19. Bd4
{[%clk 00:38:44]} {[%emt 00:01:41]} Rb4 {[%clk 00:35:45]} {[%emt 00:05:06]} 20.
Bxe5 {[%clk 00:35:18]} {[%emt 00:03:57]} Rxa4 {[%clk 00:33:43]} {[%emt
00:02:31]} 21. a3 {[%clk 00:34:07]} {[%emt 00:01:42]} Nd7 {[%clk 00:31:32]}
{[%emt 00:02:40]} 22. Bc3 {[%clk 00:34:18]} {[%emt 00:00:20]} Nc5 {[%clk
00:29:15]} {[%emt 00:02:46]} 23. f3 {[%clk 00:32:27]} {[%emt 00:02:21]} Nb7
{[%clk 00:26:18]} {[%emt 00:04:45]} 24. Bb4 {[%clk 00:30:10]} {[%emt 00:01:29]}
Nd6 {[%clk 00:24:43]} {[%emt 00:02:05]} 25. e4 {[%clk 00:21:22]} {[%emt
00:09:19]} a5 {[%clk 00:23:35]} {[%emt 00:01:39]} 26. Bxd6 {[%clk 00:18:14]}
{[%emt 00:03:37]} exd6 {[%clk 00:23:45]} {[%emt 00:00:20]} 27. Rd4 {[%clk
00:18:33]} {[%emt 00:00:11]} Rb8 {[%clk 00:23:37]} {[%emt 00:00:38]} 28. Rf2
{[%clk 00:18:46]} {[%emt 00:00:16]} Rb3 {[%clk 00:19:32]} {[%emt 00:04:35]} 29.
f4 {[%clk 00:11:39]} {[%emt 00:07:38]} Kf8 {[%clk 00:17:44]} {[%emt 00:02:17]}
30. e5 {[%clk 00:09:31]} {[%emt 00:02:39]} Rd3 {[%clk 00:15:35]} {[%emt
00:02:38]} 31. Rd2 {[%clk 00:06:57]} {[%emt 00:03:04]} Rxd2+ {[%clk 00:14:59]}
{[%emt 00:01:06]} 32. Rxd2 {[%clk 00:07:23]} {[%emt 00:00:04]} dxe5 {[%clk
00:12:58]} {[%emt 00:02:31]} 33. fxe5 {[%clk 00:06:06]} {[%emt 00:01:46]} c3
{[%clk 00:13:08]} {[%emt 00:00:20]} 34. bxc3 {[%clk 00:06:16]} {[%emt
00:00:21]} Rxa3 {[%clk 00:13:16]} {[%emt 00:00:22]} 35. Rc2 {[%clk 00:04:12]}
{[%emt 00:02:34]} Rb3 {[%clk 00:11:56]} {[%emt 00:01:51]} 36. c4 {[%clk
00:02:17]} {[%emt 00:02:24]} a4 {[%clk 00:11:45]} {[%emt 00:00:41]} 37. c5
{[%clk 00:02:11]} {[%emt 00:00:36]} a3 {[%clk 00:11:32]} {[%emt 00:00:43]} 38.
Kh3 {[%clk 00:01:02]} {[%emt 00:01:40]} Rb2 {[%clk 00:07:49]} {[%emt 00:04:13]}
39. Rc3 {[%clk 00:01:07]} {[%emt 00:00:25]} a2 {[%clk 00:07:03]} {[%emt
00:01:15]} 40. Ra3 {[%clk 00:01:30]} {[%emt 00:00:07]} Rb5 {[%clk 00:06:37]}
{[%emt 00:00:56]} 41. Ra8+ {[%clk 00:20:15]} {[%emt 00:11:45]} Kg7 {[%clk
00:34:30]} {[%emt 00:02:37]} 42. Rxa2 {[%clk 00:18:33]} {[%emt 00:02:12]} Rxc5
{[%clk 00:34:12]} {[%emt 00:00:48]} 43. Rd2 {[%clk 00:18:53]} {[%emt 00:00:10]}
Kf8 {[%clk 00:33:22]} {[%emt 00:01:20]} 44. Kg4 {[%clk 00:17:55]} {[%emt
00:01:28]} Rc4+ {[%clk 00:32:02]} {[%emt 00:01:50]} 45. Kf3 {[%clk 00:18:15]}
{[%emt 00:00:10]} Ke7 {[%clk 00:29:20]} {[%emt 00:03:12]} 46. Ke3 {[%clk
00:17:58]} {[%emt 00:00:48]} g5 {[%clk 00:27:42]} {[%emt 00:02:07]} 47. Ra2
{[%clk 00:17:02]} {[%emt 00:01:26]} f5 {[%clk 00:22:42]} {[%emt 00:05:30]} 48.
Ra7+ {[%clk 00:14:12]} {[%emt 00:03:21]} Kd8 {[%clk 00:21:44]} {[%emt
00:01:28]} 49. Kd3 {[%clk 00:13:56]} {[%emt 00:00:46]} Re4 {[%clk 00:14:40]}
{[%emt 00:07:33]} 50. e6 {[%clk 00:14:02]} {[%emt 00:00:25]} h5 {[%clk
00:13:50]} {[%emt 00:01:19]} 51. Rf7 {[%clk 00:13:28]} {[%emt 00:01:04]} Re5
{[%clk 00:13:05]} {[%emt 00:01:16]} 52. Kd4 {[%clk 00:13:43]} {[%emt 00:00:14]}
Re4+ {[%clk 00:13:13]} {[%emt 00:00:22]} 53. Kc5 {[%clk 00:13:47]} {[%emt
00:00:26]} f4 {[%clk 00:12:59]} {[%emt 00:00:44]} 54. Kd6 {[%clk 00:13:13]}
{[%emt 00:01:04]} 1-0

[Event "Masters Tournament (MTO)"]
[Site "Biel, Switzerland"]
[Date "2026.07.14"]
[Round "2.42"]
[White "Yang, Sung-Jui"]
[Black "Morrison, Joseph"]
[Result "0-1"]
[TimeControl "100+30+30sec/move"]
[WhiteTitle "-"]
[BlackTitle "-"]
[WhiteFideId "16301048"]
[BlackFideId "479535"]
[WhiteElo "1935"]
[BlackElo "2048"]

1. d4 {[%clk 01:40:45]} {[%emt 00:00:14]} Nf6 {[%clk 01:40:33]} {[%emt
00:00:27]} 2. Nf3 {[%clk 01:40:59]} {[%emt 00:00:16]} e6 {[%clk 01:40:54]}
{[%emt 00:00:10]} 3. c4 {[%clk 01:41:17]} {[%emt 00:00:12]} c5 {[%clk
01:41:18]} {[%emt 00:00:07]} 4. d5 {[%clk 01:41:33]} {[%emt 00:00:13]} b5
{[%clk 01:41:39]} {[%emt 00:00:08]} 5. dxe6 {[%clk 01:33:35]} {[%emt 00:08:28]}
fxe6 {[%clk 01:42:01]} {[%emt 00:00:07]} 6. cxb5 {[%clk 01:33:36]} {[%emt
00:00:31]} d5 {[%clk 01:42:24]} {[%emt 00:00:07]} 7. e3 {[%clk 01:33:27]}
{[%emt 00:00:38]} Bd6 {[%clk 01:42:22]} {[%emt 00:00:33]} 8. b3 {[%clk
01:30:39]} {[%emt 00:03:20]} Bb7 {[%clk 01:39:11]} {[%emt 00:03:39]} 9. Bb2
{[%clk 01:30:38]} {[%emt 00:00:31]} Nbd7 {[%clk 01:38:50]} {[%emt 00:00:51]} 10.
Nbd2 {[%clk 01:27:58]} {[%emt 00:03:10]} Qe7 {[%clk 01:37:14]} {[%emt
00:02:07]} 11. Be2 {[%clk 01:16:49]} {[%emt 00:11:39]} O-O {[%clk 01:33:13]}
{[%emt 00:04:30]} 12. O-O {[%clk 01:15:47]} {[%emt 00:01:32]} e5 {[%clk
01:27:21]} {[%emt 00:06:23]} 13. e4 {[%clk 01:13:13]} {[%emt 00:03:04]} Nxe4
{[%clk 01:20:38]} {[%emt 00:07:12]} 14. Nxe4 {[%clk 01:13:09]} {[%emt
00:00:34]} dxe4 {[%clk 01:20:50]} {[%emt 00:00:18]} 15. Bc4+ {[%clk 01:03:53]}
{[%emt 00:09:46]} Kh8 {[%clk 01:20:26]} {[%emt 00:00:54]} 16. Ng5 {[%clk
01:03:56]} {[%emt 00:00:28]} Qxg5 {[%clk 01:11:45]} {[%emt 00:09:11]} 17. Qxd6
{[%clk 01:04:14]} {[%emt 00:00:12]} e3 {[%clk 01:04:41]} {[%emt 00:07:34]} 18.
Bd5 {[%clk 00:37:13]} {[%emt 00:27:30]} exf2+ {[%clk 00:55:22]} {[%emt
00:09:49]} 19. Rxf2 {[%clk 00:36:50]} {[%emt 00:00:52]} Rxf2 {[%clk 00:47:04]}
{[%emt 00:08:47]} 20. Bxb7 {[%clk 00:35:49]} {[%emt 00:01:32]} Raf8 {[%clk
00:36:12]} {[%emt 00:11:21]} 21. h3 {[%clk 00:31:36]} {[%emt 00:04:42]} e4
{[%clk 00:26:41]} {[%emt 00:13:01]} 22. Bxe4 {[%clk 00:30:19]} Rxb2 {[%clk
00:24:21]} {[%emt 00:01:39]} 23. Re1 {[%clk 00:29:01]} {[%emt 00:01:49]} Qf6
{[%clk 00:21:16]} {[%emt 00:03:33]} 0-1

[Event "Masters Tournament (MTO)"]
[Site "Biel, Switzerland"]
[Date "2026.07.14"]
[Round "2.43"]
[White "Lumsdon, Andrew"]
[Black "Berezovskii, Arina"]
[Result "1/2-1/2"]
[TimeControl "100+30+30sec/move"]
[WhiteTitle "-"]
[BlackTitle "-"]
[WhiteFideId "1308840"]
[BlackFideId "34449850"]
[WhiteElo "2033"]
[BlackElo "1906"]

1. e4 {[%clk 01:40:55]} {[%emt 00:00:03]} e5 {[%clk 01:40:51]} {[%emt
00:00:10]} 2. Nf3 {[%clk 01:41:18]} {[%emt 00:00:07]} Nf6 {[%clk 01:41:14]}
{[%emt 00:00:06]} 3. Nc3 {[%clk 01:41:43]} {[%emt 00:00:06]} Nc6 {[%clk
01:41:39]} {[%emt 00:00:05]} 4. g3 {[%clk 01:42:08]} {[%emt 00:00:05]} d5
{[%clk 01:41:33]} {[%emt 00:00:36]} 5. exd5 {[%clk 01:42:08]} {[%emt 00:00:29]}
Nxd5 {[%clk 01:41:46]} {[%emt 00:00:18]} 6. Bg2 {[%clk 01:42:31]} {[%emt
00:00:06]} Nxc3 {[%clk 01:42:04]} {[%emt 00:00:14]} 7. bxc3 {[%clk 01:42:52]}
{[%emt 00:00:08]} Bd6 {[%clk 01:42:13]} {[%emt 00:00:22]} 8. d3 {[%clk
01:42:46]} {[%emt 00:00:35]} O-O {[%clk 01:42:16]} {[%emt 00:00:27]} 9. O-O
{[%clk 01:43:04]} {[%emt 00:00:12]} Bg4 {[%clk 01:42:00]} {[%emt 00:00:46]} 10.
h3 {[%clk 01:43:27]} {[%emt 00:00:07]} Bh5 {[%clk 01:41:07]} {[%emt 00:01:23]}
11. Rb1 {[%clk 01:43:06]} {[%emt 00:00:50]} Rb8 {[%clk 01:40:50]} {[%emt
00:00:48]} 12. g4 {[%clk 01:38:36]} {[%emt 00:05:01]} Bg6 {[%clk 01:40:44]}
{[%emt 00:00:38]} 13. Ng5 {[%clk 01:38:58]} {[%emt 00:00:07]} Qd7 {[%clk
01:38:31]} {[%emt 00:02:44]} 14. h4 {[%clk 01:33:06]} {[%emt 00:06:21]} f6
{[%clk 01:20:32]} {[%emt 00:18:29]} 15. Bd5+ {[%clk 01:27:39]} {[%emt
00:05:57]} Kh8 {[%clk 01:18:05]} {[%emt 00:02:58]} 16. h5 {[%clk 01:27:41]}
{[%emt 00:00:26]} Bxh5 {[%clk 01:04:44]} {[%emt 00:13:51]} 17. Ne6 {[%clk
01:25:36]} {[%emt 00:02:34]} Rfe8 {[%clk 00:58:21]} {[%emt 00:06:55]} 18. gxh5
{[%clk 01:25:01]} {[%emt 00:01:05]} Rxe6 {[%clk 00:58:45]} {[%emt 00:00:07]} 19.
Qg4 {[%clk 01:22:50]} {[%emt 00:02:39]} f5 {[%clk 00:56:35]} {[%emt 00:02:42]}
20. Bxe6 {[%clk 01:21:42]} {[%emt 00:01:37]} Qxe6 {[%clk 00:56:48]} {[%emt
00:00:17]} 21. Qh4 {[%clk 01:13:18]} {[%emt 00:08:53]} e4 {[%clk 00:40:32]}
{[%emt 00:16:48]} 22. d4 {[%clk 01:10:22]} {[%emt 00:03:26]} Rg8 {[%clk
00:37:20]} {[%emt 00:03:42]} 23. Kh1 {[%clk 01:06:17]} {[%emt 00:04:33]} Qd5
{[%clk 00:31:27]} {[%emt 00:06:24]} 24. Bf4 {[%clk 00:58:09]} {[%emt 00:08:38]}
e3+ {[%clk 00:21:27]} {[%emt 00:10:31]} 25. f3 {[%clk 00:57:54]} {[%emt
00:00:44]} e2 {[%clk 00:20:31]} {[%emt 00:01:27]} 26. Rf2 {[%clk 00:58:15]}
{[%emt 00:00:08]} g5 {[%clk 00:15:20]} {[%emt 00:05:41]} 27. hxg6 {[%clk
00:57:58]} {[%emt 00:00:47]} Rxg6 {[%clk 00:15:29]} {[%emt 00:00:21]} 28. Re1
{[%clk 00:57:12]} {[%emt 00:01:16]} Be7 {[%clk 00:11:07]} {[%emt 00:04:53]} 29.
Qh5 {[%clk 00:52:43]} {[%emt 00:05:20]} Rg4 {[%clk 00:09:55]} {[%emt 00:01:21]}
30. Bh2 {[%clk 00:52:43]} {[%emt 00:00:30]} Bh4 {[%clk 00:07:34]} {[%emt
00:02:51]} 31. Qe8+ {[%clk 00:46:28]} {[%emt 00:06:43]} Rg8 {[%clk 00:06:37]}
{[%emt 00:01:29]} 32. Qxe2 {[%clk 00:46:36]} {[%emt 00:00:21]} Bxf2 {[%clk
00:06:57]} {[%emt 00:00:11]} 33. Qxf2 {[%clk 00:46:56]} {[%emt 00:00:10]} Qxa2
{[%clk 00:06:16]} {[%emt 00:01:11]} 34. Bxc7 {[%clk 00:47:14]} {[%emt
00:00:11]} Qf7 {[%clk 00:04:55]} {[%emt 00:01:52]} 35. Bh2 {[%clk 00:46:37]}
{[%emt 00:01:07]} a5 {[%clk 00:03:58]} {[%emt 00:01:28]} 36. Qh4 {[%clk
00:40:31]} {[%emt 00:06:36]} a4 {[%clk 00:02:43]} {[%emt 00:01:45]} 37. c4
{[%clk 00:39:16]} {[%emt 00:01:44]} Re8 {[%clk 00:01:22]} {[%emt 00:01:51]} 38.
d5 {[%clk 00:38:25]} {[%emt 00:01:20]} Rxe1+ {[%clk 00:01:18]} {[%emt
00:00:35]} 39. Qxe1 {[%clk 00:38:43]} {[%emt 00:00:11]} Qe7 {[%clk 00:00:53]}
{[%emt 00:00:57]} 40. Qc3+ {[%clk 00:37:12]} {[%emt 00:02:00]} Qg7 {[%clk
00:00:34]} {[%emt 00:00:50]} 41. Qxg7+ {[%clk 00:36:56]} {[%emt 00:00:45]} Kxg7
{[%clk 00:01:02]} {[%emt 00:00:02]} 42. dxc6 {[%clk 00:37:05]} {[%emt
00:00:21]} bxc6 {[%clk 00:01:29]} {[%emt 00:00:03]} 43. Be5+ {[%clk 00:37:11]}
{[%emt 00:00:24]} Kg6 {[%clk 00:25:33]} {[%emt 00:06:26]} 44. Kg2 {[%clk
01:07:06]} {[%emt 00:00:33]} Kg5 {[%clk 00:23:29]} {[%emt 00:02:36]} 45. Kg3
{[%clk 01:06:55]} {[%emt 00:00:41]} a3 {[%clk 00:22:23]} {[%emt 00:01:36]} 46.
Bc3 {[%clk 00:55:19]} {[%emt 00:12:06]} a2 {[%clk 00:21:33]} {[%emt 00:01:21]}
47. Bb2 {[%clk 00:55:19]} {[%emt 00:00:29]} f4+ {[%clk 00:17:28]} {[%emt
00:04:36]} 48. Kh3 {[%clk 00:55:41]} {[%emt 00:00:07]} c5 {[%clk 00:15:53]}
{[%emt 00:02:06]} 49. Kg2 {[%clk 00:50:42]} {[%emt 00:05:29]} h5 {[%clk
00:15:05]} {[%emt 00:01:18]} 50. Kf2 {[%clk 00:50:58]} {[%emt 00:00:12]} h4
{[%clk 00:14:01]} {[%emt 00:01:35]} 51. Ke2 {[%clk 00:50:02]} {[%emt 00:01:26]}
Kf5 {[%clk 00:11:56]} {[%emt 00:02:35]} 52. Bc3 {[%clk 00:49:57]} {[%emt
00:00:35]} Kg5 {[%clk 00:11:43]} {[%emt 00:00:43]} 53. Kf2 {[%clk 00:47:59]}
{[%emt 00:02:28]} Kf5 {[%clk 00:11:22]} {[%emt 00:00:52]} 54. Kg2 {[%clk
00:48:18]} {[%emt 00:00:11]} Kg5 {[%clk 00:11:40]} {[%emt 00:00:11]} 55. Kh3
{[%clk 00:48:42]} {[%emt 00:00:05]} Kh5 {[%clk 00:12:06]} {[%emt 00:00:05]} 56.
Bf6 {[%clk 00:49:06]} {[%emt 00:00:07]} Kg6 {[%clk 00:12:19]} {[%emt 00:00:17]}
57. Be5 {[%clk 00:48:42]} {[%emt 00:00:53]} Kg5 {[%clk 00:12:31]} {[%emt
00:00:18]} 58. Bc3 {[%clk 00:48:48]} {[%emt 00:00:24]} Kh5 {[%clk 00:12:56]}
{[%emt 00:00:05]} 59. Bf6 {[%clk 00:49:12]} {[%emt 00:00:06]} Kg6 {[%clk
00:13:21]} {[%emt 00:00:05]} 1/2-1/2

[Event "Masters Tournament (MTO)"]
[Site "Biel, Switzerland"]
[Date "2026.07.14"]
[Round "2.44"]
[White "Ruchat, Blaise"]
[Black "Aryan, Goyal"]
[Result "1/2-1/2"]
[TimeControl "100+30+30sec/move"]
[WhiteTitle "-"]
[BlackTitle "-"]
[WhiteFideId "1328921"]
[BlackFideId "366108825"]
[WhiteElo "1912"]
[BlackElo "2029"]

1. d4 {[%emt 00:00:09]} Nf6 {[%clk 01:40:35]} {[%emt 00:00:20]} 2. c4 {[%clk
01:41:08]} {[%emt 00:00:16]} e6 {[%clk 01:41:00]} {[%emt 00:00:05]} 3. Nf3
{[%clk 01:41:16]} {[%emt 00:00:23]} Bb4+ {[%clk 01:41:05]} {[%emt 00:00:25]} 4.
Bd2 {[%clk 01:41:25]} {[%emt 00:00:21]} Qe7 {[%clk 01:40:57]} {[%emt 00:00:37]}
5. a3 {[%clk 01:28:27]} {[%emt 00:13:30]} Bxd2+ {[%clk 01:40:45]} {[%emt
00:00:42]} 6. Nbxd2 {[%clk 01:26:23]} {[%emt 00:02:33]} O-O {[%clk 01:37:21]}
{[%emt 00:03:52]} 7. e4 {[%clk 01:20:20]} {[%emt 00:06:36]} d6 {[%clk
01:35:58]} {[%emt 00:01:53]} 8. e5 {[%clk 01:19:01]} {[%emt 00:01:49]} Nfd7
{[%clk 01:27:17]} {[%emt 00:09:11]} 9. Bd3 {[%clk 01:19:03]} {[%emt 00:00:27]}
dxe5 {[%clk 01:25:46]} {[%emt 00:02:02]} 10. dxe5 {[%clk 01:19:17]} {[%emt
00:00:16]} Nc6 {[%clk 01:25:57]} {[%emt 00:00:18]} 11. Qe2 {[%clk 01:18:33]}
{[%emt 00:01:14]} Rd8 {[%clk 01:15:09]} {[%emt 00:11:19]} 12. Bc2 {[%clk
00:53:11]} {[%emt 00:25:52]} a5 {[%clk 01:00:06]} {[%emt 00:15:33]} 13. O-O-O
{[%clk 00:44:57]} {[%emt 00:08:43]} a4 {[%clk 00:34:38]} {[%emt 00:25:59]} 14.
Qe4 {[%clk 00:35:24]} {[%emt 00:10:03]} Nf8 {[%clk 00:27:57]} {[%emt 00:07:10]}
15. h4 {[%clk 00:32:01]} {[%emt 00:03:54]} Qc5 {[%clk 00:24:50]} {[%emt
00:03:36]} 16. Qf4 {[%clk 00:28:45]} {[%emt 00:03:47]} Ng6 {[%clk 00:17:01]}
{[%emt 00:08:19]} 17. Bxg6 {[%clk 00:22:32]} {[%emt 00:06:43]} fxg6 {[%clk
00:17:19]} {[%emt 00:00:12]} 18. h5 {[%clk 00:17:05]} {[%emt 00:05:57]} Rf8
{[%clk 00:06:13]} {[%emt 00:11:36]} 19. Qg3 {[%clk 00:15:17]} {[%emt 00:02:17]}
b5 {[%clk 00:06:08]} {[%emt 00:00:37]} 20. hxg6 {[%clk 00:13:45]} {[%emt
00:02:01]} h6 {[%clk 00:06:24]} {[%emt 00:00:14]} 21. Rh4 {[%clk 00:09:10]}
{[%emt 00:05:05]} b4 {[%clk 00:05:31]} {[%emt 00:01:23]} 22. Rdh1 {[%clk
00:05:38]} {[%emt 00:04:02]} bxa3 {[%clk 00:03:45]} {[%emt 00:02:16]} 23. Rxh6
{[%clk 00:05:34]} {[%emt 00:00:33]} gxh6 {[%clk 00:02:35]} {[%emt 00:01:41]} 24.
Rxh6 {[%clk 00:05:15]} {[%emt 00:00:49]} a2 {[%clk 00:01:56]} {[%emt 00:01:09]}
25. Rh8+ {[%clk 00:01:37]} {[%emt 00:04:07]} Kg7 {[%clk 00:02:08]} {[%emt
00:00:17]} 26. Rh7+ {[%clk 00:02:02]} {[%emt 00:00:06]} Kg8 {[%clk 00:02:34]}
{[%emt 00:00:05]} 27. Rh8+ {[%clk 00:01:21]} {[%emt 00:01:11]} Kg7 {[%clk
00:02:59]} {[%emt 00:00:05]} 28. Rh7+ {[%clk 00:01:44]} {[%emt 00:00:07]} Kg8
{[%clk 00:03:21]} {[%emt 00:00:05]} 29. Rh8+ {[%clk 00:01:02]} {[%emt
00:01:14]} 1/2-1/2